bitfinex/quotes_ETHUSD_20250608
["timestamp","ask_amount","ask_price","bid_price","bid_amount"]
[1749419270288,7.62093936,2538.0,2537.9,19.94026557]
[1749419270483,7.25149596,2538.0,2537.9,19.94026557]
[1749419271024,7.62093971,2538.0,2537.9,19.94026557]
[1749419271322,7.62093361,2538.0,2537.9,19.94026557]
[1749419271683,7.62093422,2538.0,2537.9,19.94026557]
[1749419271906,7.62093413,2538.0,2537.9,19.94026557]
[1749419272107,7.25149596,2538.0,2537.9,19.94026557]
[1749419272507,7.62093259,2538.0,2537.9,19.94026557]
[1749419272907,7.62092771,2538.0,2537.9,19.94026557]
[1749419273516,7.25149596,2538.0,2537.9,19.94026557]
[1749419274414,7.62092489,2538.0,2537.9,19.94026557]
[1749419274616,8.80310629,2538.0,2537.9,19.94026557]
[1749419275141,8.43367736,2538.0,2537.9,19.94026557]
[1749419275336,8.80310282,2538.0,2537.9,19.94026557]
[1749419275539,8.43367736,2538.0,2537.9,19.94026557]
[1749419276106,8.83528733,2538.0,2537.9,19.94026557]
[1749419276433,2.49728733,2538.0,2537.9,19.94026557]
[1749419276643,8.83128583,2538.0,2537.9,19.94026557]
[1749419276826,8.46186377,2538.0,2537.9,19.94026557]
[1749419277448,8.83128533,2538.0,2537.9,19.94026557]
[1749419277626,8.46186377,2538.0,2537.9,19.94026557]
[1749419278007,8.83128664,2538.0,2537.9,19.94026557]
[1749419278207,8.83126241,2538.0,2537.9,19.94026557]
[1749419278740,8.46186377,2538.0,2537.9,19.94026557]
[1749419278954,8.83126113,2538.0,2537.9,19.94026557]
[1749419279105,8.46186377,2538.0,2537.9,19.94026557]
[1749419279501,8.83126157,2538.0,2537.9,19.94026557]
[1749419279947,8.46186377,2538.0,2537.9,19.94026557]
[1749419280131,8.83126041,2538.0,2537.9,19.94026557]
[1749419280305,8.46186377,2538.0,2537.9,19.94026557]
[1749419281038,8.83125967,2538.0,2537.9,19.94026557]
[1749419281256,2.49725967,2538.0,2537.9,19.94026557]
[1749419281421,7.64911313,2538.0,2537.9,19.94026557]
[1749419281943,7.64911313,2538.0,2537.9,20.76916557]
[1749419281944,1.31504732,2538.0,2537.9,20.76916557]
[1749419282239,0.94571723,2538.0,2537.9,20.76916557]
[1749419285708,6.334,2538.2,2538.1,19.93995508]
[1749419285945,6.334,2538.2,2538.1,23.90710461]
[1749419285946,7.27874232,2538.2,2538.1,23.90710461]
[1749419287441,0.94474232,2538.2,2538.1,28.70315414]
[1749419287741,1.18214654,2538.6,2538.5,3.93933425]
[1749419287950,3.95266149,2538.8,2538.5,3.93933425]
[1749419287951,1.18214654,2538.7,2538.6,19.93917907]
[1749419288134,8.46040201,2538.7,2538.6,23.9063286]
[1749419288541,1.31303886,2538.7,2538.6,23.9063286]
[1749419288712,0.94425547,2538.7,2538.6,23.9063286]
[1749419288918,7.27825547,2538.7,2538.6,23.9063286]
[1749419289731,19.99382734,2539.1,2539.0,3.93855848]
[1749419289959,27.27193782,2539.1,2539.0,7.90570801]
[1749419290148,19.69467542,2539.1,2539.0,7.90570801]
[1749419290454,26.02867542,2539.1,2539.0,7.90570801]
[1749419290652,26.02421404,2539.1,2539.0,7.90570801]
[1749419290969,1.11625664,2539.1,2539.0,25.09015017]
[1749419291122,7.45025664,2539.1,2539.0,25.09015017]
[1749419291323,1.11625664,2539.1,2539.0,25.48468375]
[1749419292423,0.1736808,2539.1,2539.0,25.48468375]
[1749419293456,0.1736808,2539.1,2539.0,30.28073328]
[1749419293755,1.1782198,2540.3,2540.2,16.0]
[1749419293955,1.1782198,2540.6,2540.3,3.93654292]
[1749419294259,1.1782198,2540.7,2540.6,3.93607809]
[1749419294458,3.1473659,2541.4,2540.6,3.93607809]
[1749419294459,6.397,2541.4,2541.1,3.93521186]
[1749419294634,3.7835731,2541.6,2541.2,23.90226787]
[1749419294972,0.7837,2541.3,2540.4,0.8122]
[1749419295161,3.93496678,2541.4,2540.7,16.0]
[1749419295162,0.7837,2541.1,2540.7,16.0]
[1749419295320,1.611,2541.0,2540.6,25.3742172]
[1749419295516,8.016,2540.9,2540.6,25.37421848]
[1749419295759,8.017,2540.8,2540.7,3.93589836]
[1749419296569,8.017,2540.8,2540.6,21.43816799]
[1749419297143,8.017,2540.8,2540.6,25.37420619]
[1749419297687,8.017,2540.8,2540.4,3.93635996]
[1749419297688,0.7837,2540.7,2540.5,16.0]
[1749419297884,0.88007,2540.6,2540.5,16.0]
[1749419298033,0.88007,2540.6,2540.3,9.77635966]
[1749419298236,6.407,2540.5,2540.1,9.3749495]
[1749419298447,6.407,2540.5,2539.9,9.37527048]
[1749419298448,0.7837,2540.4,2539.9,9.37527048]
[1749419298647,0.7837,2540.4,2539.4,5.43816799]
[1749419298648,0.8023,2539.8,2539.4,5.43816799]
[1749419298857,8.021,2539.7,2539.4,5.43816799]
[1749419299055,8.021,2539.7,2539.2,3.93821161]
[1749419299270,11.95861187,2539.7,2539.1,9.37649034]
[1749419299539,11.95861187,2539.7,2538.9,5.43816799]
[1749419299540,3.93818607,2539.3,2538.9,5.43816799]
[1749419299850,7.2183,2539.2,2538.9,5.43816799]
[1749419300149,8.026,2539.1,2539.0,16.0]
[1749419300553,8.026,2539.1,2538.9,5.83686105]
[1749419300754,8.026,2539.1,2538.9,0.39869306]
[1749419301092,8.026,2539.1,2538.9,16.0]
[1749419301442,8.026,2539.1,2538.8,5.43816799]
[1749419301796,8.026,2539.1,2533.8,6.81]
[1749419301797,8.028,2539.1,2539.0,9.37672647]
[1749419301939,6.42,2539.3,2539.2,19.9382399]
[1749419302134,6.42,2539.3,2539.2,25.37640789]
[1749419302380,1.61,2539.7,2539.4,3.93789948]
[1749419302583,8.042,2539.8,2539.7,3.93738684]
[1749419302762,8.042,2539.8,2539.7,19.93738684]
[1749419303464,17.015,2539.9,2539.8,16.0]
[1749419303665,25.056,2539.9,2539.8,19.93731789]
[1749419305005,25.057,2539.9,2539.8,19.93731789]
[1749419306141,25.057,2539.9,2539.4,21.43816799]
[1749419306142,27.5627,2539.9,2539.4,21.43816799]
[1749419306345,0.8238,2539.8,2539.4,16.0]
[1749419306546,0.8238,2539.8,2539.4,19.93792764]
[1749419307077,6.434,2539.7,2539.5,9.3758332]
[1749419307663,6.434,2539.7,2539.5,5.43816799]
[1749419308385,9.27285,2539.7,2539.4,19.93787855]
[1749419311405,9.27285,2539.7,2539.4,16.0]
[1749419311606,9.27285,2539.7,2539.4,3.93791295]
[1749419314198,9.27285,2539.7,2539.4,3.93793809]
[1749419314607,9.27285,2539.7,2539.6,16.0]
[1749419314775,10.87385,2539.7,2539.6,19.93762797]
[1749419316185,8.035,2539.7,2539.6,19.93762797]
[1749419316386,8.97337961,2539.7,2539.6,19.93762797]
[1749419327361,10.1441177,2539.7,2539.6,19.93762797]
[1749419328426,8.97337961,2539.7,2539.6,19.93762797]
[1749419328647,10.15248585,2539.7,2539.6,19.93762797]
[1749419328951,10.52079298,2539.7,2539.6,19.93762797]
[1749419329154,10.15248585,2539.7,2539.6,19.93762797]
[1749419329340,10.15249238,2539.7,2539.6,19.93762797]
[1749419329509,10.52085382,2539.7,2539.6,19.93762797]
[1749419329910,10.15249238,2539.7,2539.6,19.93762797]
[1749419330310,10.52085214,2539.7,2539.6,19.93762797]
[1749419331147,10.15249238,2539.7,2539.6,19.93762797]
[1749419332134,10.52191085,2539.7,2539.6,19.93762797]
[1749419332332,10.52209307,2539.7,2539.6,19.93762797]
[1749419332847,10.15338696,2539.7,2539.6,19.93762797]
[1749419333551,10.52211916,2539.7,2539.6,19.93762797]
[1749419333718,10.52211917,2539.7,2539.6,19.93762797]
[1749419333923,10.52211969,2539.7,2539.6,19.93762797]
[1749419334123,10.15338696,2539.7,2539.6,19.93762797]
[1749419334447,8.97337961,2539.7,2539.6,19.93762797]
[1749419334754,9.34231673,2539.7,2539.6,19.93762797]
[1749419334958,8.97337961,2539.7,2539.6,19.93762797]
[1749419335561,10.91727817,2539.7,2539.6,19.93762797]
[1749419336051,9.34231643,2539.7,2539.6,19.93762797]
[1749419336251,8.97337961,2539.7,2539.6,19.93762797]
[1749419336445,10.91750892,2539.7,2539.6,19.93762797]
[1749419336753,2.5133411,2539.7,2539.6,19.93762797]
[1749419336940,10.5793411,2539.7,2539.6,19.93762797]
[1749419337250,9.00437961,2539.7,2539.6,19.93762797]
[1749419337551,10.5793411,2539.7,2539.6,19.93762797]
[1749419338119,10.94851002,2539.7,2539.6,19.93762797]
[1749419338314,10.94851079,2539.7,2539.6,19.93762797]
[1749419338518,10.5793411,2539.7,2539.6,19.93762797]
[1749419338853,10.94845799,2539.7,2539.6,19.93762797]
[1749419339049,10.94845696,2539.7,2539.6,19.93762797]
[1749419339249,10.94845696,2539.7,2539.5,19.93770507]
[1749419339549,2.60037961,2539.6,2539.5,19.93770507]
[1749419339754,3.78161039,2539.6,2539.5,19.93770507]
[1749419339951,2.60037961,2539.6,2539.5,19.93770507]
[1749419340319,3.74069372,2539.6,2539.5,16.0]
[1749419340641,3.74069372,2539.6,2539.5,19.93778302]
[1749419340958,5.29102332,2539.6,2539.5,19.93778302]
[1749419341142,5.29102376,2539.6,2539.5,19.93778302]
[1749419341448,2.60037961,2539.6,2539.5,19.93778302]
[1749419341856,9.00337961,2539.6,2539.5,19.93778302]
[1749419342035,1.30748441,2539.6,2539.5,19.93778302]
[1749419342236,10.55369348,2539.6,2539.5,19.93778302]
[1749419342448,9.37248286,2539.6,2539.5,19.93778302]
[1749419342655,9.00337961,2539.6,2539.5,19.93778302]
[1749419342822,10.55368938,2539.6,2539.5,19.93778302]
[1749419343027,10.18458597,2539.6,2539.5,19.93778302]
[1749419343964,10.55367874,2539.6,2539.5,19.93778302]
[1749419344459,10.18458597,2539.6,2539.5,19.93778302]
[1749419345463,9.00337961,2539.6,2539.5,19.93778302]
[1749419345627,9.3724867,2539.6,2539.5,19.93778302]
[1749419346165,9.00337961,2539.6,2539.5,19.93778302]
[1749419346659,9.3724868,2539.6,2539.5,19.93778302]
[1749419346863,9.37248591,2539.6,2539.5,19.93778302]
[1749419347064,10.18455853,2539.6,2539.5,19.93778302]
[1749419347261,2.48866328,2539.6,2539.5,19.93778302]
[1749419347467,10.55066328,2539.6,2539.5,19.93778302]
[1749419347761,10.5506631,2539.6,2539.5,19.93778302]
[1749419347961,10.18155853,2539.6,2539.5,19.93778302]
[1749419349081,10.55066147,2539.6,2539.5,19.93778302]
[1749419349462,10.18813169,2539.6,2539.5,19.93778302]
[1749419349662,10.55724095,2539.6,2539.5,19.93778302]
[1749419349973,10.18813169,2539.6,2539.5,19.93778302]
[1749419350169,2.12613169,2539.6,2539.5,19.93778302]
[1749419350371,10.54224043,2539.6,2539.5,19.93778302]
[1749419350576,10.17313169,2539.6,2539.5,19.93778302]
[1749419350748,8.99194742,2539.6,2539.5,19.93778302]
[1749419350951,9.36105614,2539.6,2539.5,19.93778302]
[1749419351481,8.99194742,2539.6,2539.5,19.93778302]
[1749419351686,9.36105617,2539.6,2539.5,19.93778302]
[1749419351882,10.1731354,2539.6,2539.5,19.93778302]
[1749419352187,10.54224263,2539.6,2539.5,19.93778302]
[1749419352373,10.54224266,2539.6,2539.5,19.93778302]
[1749419352990,10.5402581,2539.6,2539.5,19.93778302]
[1749419353186,10.17115084,2539.6,2539.5,19.93778302]
[1749419353483,10.54026567,2539.6,2539.5,19.93778302]
[1749419353689,0.94494742,2539.6,2539.5,26.14965226]
[1749419355149,1.649,2539.9,2539.8,3.93731789]
[1749419355350,2.59344976,2539.9,2539.8,26.60421959]
[1749419355673,7.34944976,2539.9,2539.8,26.60421959]
[1749419356074,6.405,2539.9,2539.8,26.60421959]
[1749419356391,7.34806908,2539.9,2539.8,26.60421959]
[1749419356899,0.94406908,2539.9,2539.8,26.60421959]
[1749419357203,1.649,2540.1,2540.0,3.93700787]
[1749419357377,8.9956031,2540.1,2540.0,25.37937711]
[1749419358601,2.5926031,2540.1,2540.0,25.37937711]
[1749419358897,8.9946031,2540.1,2540.0,25.37937711]
[1749419359298,8.051,2540.1,2540.0,25.37937711]
[1749419360101,1.649,2540.1,2540.0,25.37937711]
[1749419360403,8.05,2540.1,2540.0,25.37937711]
[1749419361494,18.665,2540.3,2540.2,19.93669789]
[1749419361669,26.00694656,2540.3,2540.2,25.37906713]
[1749419362304,7.35094656,2540.3,2540.2,26.13616713]
[1749419362807,6.409,2540.3,2540.2,26.13616713]
[1749419364125,1.96308635,2540.7,2540.5,3.9361899]
[1749419364324,8.99742181,2540.6,2540.5,19.9361899]
[1749419365125,9.36503239,2540.6,2540.5,19.9361899]
[1749419365298,1.30903239,2540.6,2540.5,19.9361899]
[1749419365502,9.36303234,2540.6,2540.5,19.9361899]
[1749419365690,8.99542181,2540.6,2540.5,19.9361899]
[1749419366399,0.8286,2541.1,2540.6,19.93605148]
[1749419366400,0.94057586,2540.8,2540.6,19.93605148]
[1749419366607,1.649,2540.8,2540.7,25.37829241]
[1749419366898,6.411,2540.8,2540.7,25.37826734]
[1749419367620,1.649,2540.9,2540.7,25.37826734]
[1749419367621,1.649,2540.9,2540.8,3.93576826]
[1749419367786,8.059,2540.9,2540.8,3.93576826]
[1749419369521,0.93972191,2541.1,2541.0,3.93545848]
[1749419369735,8.99672191,2541.1,2541.0,19.93545848]
[1749419370090,0.93972191,2541.1,2541.0,19.93545848]
[1749419370418,8.056,2541.1,2541.0,19.93545848]
[1749419371439,8.056,2541.1,2541.0,16.0]
[1749419372231,8.99501029,2541.1,2541.0,19.93545848]
[1749419372428,8.056,2541.1,2541.0,19.93545848]
[1749419374188,0.93874538,2541.2,2541.1,19.9353036]
[1749419374632,8.99074538,2541.2,2541.1,19.9353036]
[1749419375375,8.051,2541.2,2541.1,19.9353036]
[1749419376593,17.8416,2541.3,2541.1,19.9353036]
[1749419376825,8.05,2541.2,2541.1,19.9353036]
[1749419377194,8.05,2541.2,2541.1,16.0]
[1749419377394,8.98874671,2541.2,2541.0,16.0]
[1749419377595,8.98874671,2541.2,2541.1,3.9353036]
[1749419377596,8.05,2541.2,2541.1,3.9353036]
[1749419377828,8.05,2541.2,2541.1,19.9353036]
[1749419378332,8.049,2541.2,2541.1,19.9353036]
[1749419378523,8.98780224,2541.2,2541.1,19.9353036]
[1749419382915,8.98886043,2541.2,2541.1,19.9353036]
[1749419383610,0.93986043,2541.2,2541.1,19.9353036]
[1749419383814,8.98586043,2541.2,2541.1,19.9353036]
[1749419384338,9.75966043,2541.2,2541.0,3.93544482]
[1749419384653,0.93986043,2541.1,2541.0,19.93544482]
[1749419384853,0.93986043,2541.1,2541.0,16.0]
[1749419385318,0.93986043,2541.1,2541.0,19.93545848]
[1749419385514,0.7738,2541.0,2540.7,3.93585504]
[1749419385820,7.33886043,2540.9,2540.7,16.0]
[1749419386019,0.93986043,2540.8,2540.7,19.93592317]
[1749419388518,8.98786043,2540.8,2540.7,19.93592317]
[1749419389145,0.93986043,2540.8,2540.7,19.93592317]
[1749419389456,9.35572501,2540.8,2540.7,19.93592317]
[1749419389660,8.98786043,2540.8,2540.7,19.93592317]
[1749419389957,0.93986043,2540.8,2540.7,19.93592317]
[1749419390262,8.98686043,2540.8,2540.7,19.93592317]
[1749419392262,9.3549664,2540.8,2540.7,19.93592317]
[1749419392754,9.35499966,2540.8,2540.7,19.93592317]
[1749419392959,9.3549998,2540.8,2540.7,19.93592317]
[1749419393260,8.98686043,2540.8,2540.7,19.93592317]
[1749419393853,8.98977814,2540.8,2540.7,19.93592317]
[1749419394231,9.35819969,2540.8,2540.7,19.93592317]
[1749419394475,10.53667237,2540.8,2540.7,19.93592317]
[1749419394956,10.53667097,2540.8,2540.7,19.93592317]
[1749419395165,10.16825082,2540.8,2540.7,19.93592317]
[1749419395666,10.53667243,2540.8,2540.7,19.93592317]
[1749419396765,10.16825082,2540.8,2540.7,19.93592317]
[1749419397354,2.12125082,2540.8,2540.7,19.93592317]
[1749419397552,0.8286,2540.7,2540.2,5.44236924]
[1749419397761,7.33477814,2540.6,2540.4,16.0]
[1749419397963,6.392,2540.6,2540.5,3.93623302]
[1749419398149,7.33522065,2540.6,2540.5,3.93623302]
[1749419399666,7.70354642,2540.6,2540.5,3.93623302]
[1749419399842,7.70350103,2540.6,2540.5,3.93623302]
[1749419400046,7.33522065,2540.6,2540.5,3.93623302]
[1749419402863,7.33722065,2540.6,2540.5,3.93623302]
[1749419404431,7.28522065,2540.6,2540.5,3.93623302]
[1749419406079,0.89322065,2540.6,2540.5,4.69563302]
[1749419408538,0.89322065,2540.6,2540.5,20.69563302]
[1749419410335,7.29622065,2540.6,2540.5,20.69563302]
[1749419412846,7.29622065,2540.6,2540.5,19.93623302]
[1749419415638,0.89322065,2540.6,2540.5,19.93623302]
[1749419415833,7.29222065,2540.6,2540.5,19.93623302]
[1749419416278,6.399,2540.6,2540.5,19.93623302]
[1749419416480,7.34321063,2540.6,2540.5,19.93623302]
[1749419421381,7.34321063,2540.6,2540.5,23.89083532]
[1749419422178,7.33821063,2540.6,2540.5,23.89083532]
[1749419430779,7.33828061,2540.6,2540.5,23.89083532]
[1749419431096,0.94428061,2540.6,2540.5,23.89083532]
[1749419431309,7.33328061,2540.6,2540.5,23.89083532]
[1749419432901,7.70230328,2540.6,2540.5,23.89083532]
[1749419433727,7.33328061,2540.6,2540.5,23.89083532]
[1749419434090,0.94428061,2540.6,2540.5,23.89083532]
[1749419434331,7.33128061,2540.6,2540.5,23.89083532]
[1749419434482,7.70030434,2540.6,2540.5,23.89083532]
[1749419435324,7.70030646,2540.6,2540.5,23.89083532]
[1749419435629,7.33128061,2540.6,2540.5,23.89083532]
[1749419436612,7.70030378,2540.6,2540.5,23.89083532]
[1749419437314,7.70030625,2540.6,2540.5,23.89083532]
[1749419437482,7.33128061,2540.6,2540.5,23.89083532]
[1749419438389,7.70030682,2540.6,2540.5,23.89083532]
[1749419438785,7.70030425,2540.6,2540.5,23.89083532]
[1749419439226,7.33128061,2540.6,2540.5,23.89083532]
[1749419440018,7.70030609,2540.6,2540.5,23.89083532]
[1749419440219,7.70030658,2540.6,2540.5,23.89083532]
[1749419440725,7.70030721,2540.6,2540.5,23.89083532]
[1749419440936,7.70030544,2540.6,2540.5,23.89083532]
[1749419441243,7.33128061,2540.6,2540.5,23.89083532]
[1749419441717,7.70030492,2540.6,2540.5,23.89083532]
[1749419442037,7.70030291,2540.6,2540.5,23.89083532]
[1749419442240,7.33128061,2540.6,2540.5,23.89083532]
[1749419443829,7.70029454,2540.6,2540.5,23.89083532]
[1749419444235,7.70029847,2540.6,2540.5,23.89083532]
[1749419444533,7.33128061,2540.6,2540.5,23.89083532]
[1749419445406,7.70029515,2540.6,2540.5,23.89083532]
[1749419445732,7.70029986,2540.6,2540.5,23.89083532]
[1749419446109,7.33128061,2540.6,2540.5,23.89083532]
[1749419446725,7.70030188,2540.6,2540.5,23.89083532]
[1749419446921,1.31330252,2540.6,2540.5,23.89083532]
[1749419447126,7.69230252,2540.6,2540.5,23.89083532]
[1749419447839,7.69230477,2540.6,2540.5,23.89083532]
[1749419448005,7.32328061,2540.6,2540.5,23.89083532]
[1749419448533,7.6923035,2540.6,2540.5,23.89083532]
[1749419448735,7.6923041,2540.6,2540.5,23.89083532]
[1749419448933,7.32328061,2540.6,2540.5,23.89083532]
[1749419449098,9.33230261,2540.6,2540.5,23.89083532]
[1749419449298,9.3323035,2540.6,2540.5,23.89083532]
[1749419449701,9.33230494,2540.6,2540.5,23.89083532]
[1749419449937,8.96328061,2540.6,2540.5,23.89083532]
[1749419450233,10.12040466,2540.6,2540.5,23.89083532]
[1749419450533,9.33230473,2540.6,2540.5,23.89083532]
[1749419450840,9.3323058,2540.6,2540.5,23.89083532]
[1749419451132,8.96328061,2540.6,2540.5,23.89083532]
[1749419451338,9.33230642,2540.6,2540.5,23.89083532]
[1749419451524,8.96328061,2540.6,2540.5,23.89083532]
[1749419451725,9.33230582,2540.6,2540.5,23.89083532]
[1749419451930,9.33230302,2540.6,2540.5,23.89083532]
[1749419452235,8.96328061,2540.6,2540.5,23.89083532]
[1749419452731,9.33230333,2540.6,2540.5,23.89083532]
[1749419452933,8.96328061,2540.6,2540.5,23.89083532]
[1749419453236,9.33229883,2540.6,2540.5,23.89083532]
[1749419453434,8.96328061,2540.6,2540.5,23.89083532]
[1749419454205,9.33229965,2540.6,2540.5,23.89083532]
[1749419454757,9.33230891,2540.6,2540.5,23.89083532]
[1749419454910,8.96328061,2540.6,2540.5,23.89083532]
[1749419455757,9.33230802,2540.6,2540.5,23.89083532]
[1749419455909,8.96328061,2540.6,2540.5,23.89083532]
[1749419456110,9.33230833,2540.6,2540.5,23.89083532]
[1749419456620,9.33230796,2540.6,2540.5,23.89083532]
[1749419456946,9.33230738,2540.6,2540.5,23.89083532]
[1749419457149,8.96328061,2540.6,2540.5,23.89083532]
[1749419457548,9.33230651,2540.6,2540.5,23.89083532]
[1749419458244,9.33231161,2540.6,2540.5,23.89083532]
[1749419458547,8.96328061,2540.6,2540.5,23.89083532]
[1749419459520,9.33231093,2540.6,2540.5,23.89083532]
[1749419459719,9.33230639,2540.6,2540.5,23.89083532]
[1749419460228,8.96328061,2540.6,2540.5,23.89083532]
[1749419460425,9.33230701,2540.6,2540.5,23.89083532]
[1749419460629,8.96328061,2540.6,2540.5,23.89083532]
[1749419461041,7.32328061,2540.6,2540.5,23.89083532]
[1749419461444,7.69230684,2540.6,2540.5,23.89083532]
[1749419461840,7.32328061,2540.6,2540.5,23.89083532]
[1749419462041,7.69230414,2540.6,2540.5,23.89083532]
[1749419462251,7.32365902,2540.6,2540.5,23.89083532]
[1749419462756,7.69268196,2540.6,2540.5,23.89083532]
[1749419463432,7.69268224,2540.6,2540.5,23.89083532]
[1749419463634,7.32365902,2540.6,2540.5,23.89083532]
[1749419464133,7.69268215,2540.6,2540.5,23.89083532]
[1749419464756,7.32365902,2540.6,2540.5,23.89083532]
[1749419464934,7.69268434,2540.6,2540.5,23.89083532]
[1749419465258,7.32365902,2540.6,2540.5,23.89083532]
[1749419465934,7.69268545,2540.6,2540.5,23.89083532]
[1749419466135,7.32365902,2540.6,2540.5,23.89083532]
[1749419466334,7.6926845,2540.6,2540.5,23.89083532]
[1749419466858,7.32365902,2540.6,2540.5,23.89083532]
[1749419467434,7.69268486,2540.6,2540.5,23.89083532]
[1749419467631,7.32365902,2540.6,2540.5,23.89083532]
[1749419467838,7.69268438,2540.6,2540.5,23.89083532]
[1749419468036,7.69268547,2540.6,2540.5,23.89083532]
[1749419468560,7.32365902,2540.6,2540.5,23.89083532]
[1749419468770,7.69267988,2540.6,2540.5,23.89083532]
[1749419468949,7.32365902,2540.6,2540.5,23.89083532]
[1749419469766,7.69267823,2540.6,2540.5,23.89083532]
[1749419469966,7.69267834,2540.6,2540.5,23.89083532]
[1749419470325,7.32365902,2540.6,2540.5,23.89083532]
[1749419470526,7.69267765,2540.6,2540.5,23.89083532]
[1749419470840,7.69267781,2540.6,2540.5,23.89083532]
[1749419471041,7.32365902,2540.6,2540.5,23.89083532]
[1749419471342,7.69267891,2540.6,2540.5,23.89083532]
[1749419472039,7.69267984,2540.6,2540.5,23.89083532]
[1749419472240,7.32365902,2540.6,2540.5,23.89083532]
[1749419473054,7.69268956,2540.6,2540.5,23.89083532]
[1749419473569,7.69269065,2540.6,2540.5,23.89083532]
[1749419474066,7.32365902,2540.6,2540.5,23.89083532]
[1749419474237,7.69269065,2540.6,2540.5,23.89083532]
[1749419475049,8.06172145,2540.6,2540.5,23.89083532]
[1749419475468,8.06172414,2540.6,2540.5,23.89083532]
[1749419475768,7.69269065,2540.6,2540.5,23.89083532]
[1749419476466,8.06176883,2540.6,2540.5,23.89083532]
[1749419477540,7.69273461,2540.6,2540.5,23.89083532]
[1749419478583,8.06176942,2540.6,2540.5,23.89083532]
[1749419479083,8.06176841,2540.6,2540.5,23.89083532]
[1749419479249,8.06176725,2540.6,2540.5,23.89083532]
[1749419479455,7.69273461,2540.6,2540.5,23.89083532]
[1749419479934,8.06176822,2540.6,2540.5,23.89083532]
[1749419480872,7.69273461,2540.6,2540.5,23.89083532]
[1749419481866,8.06177025,2540.6,2540.5,23.89083532]
[1749419482073,7.69273461,2540.6,2540.5,23.89083532]
[1749419482273,8.06177059,2540.6,2540.5,23.89083532]
[1749419482566,7.69273461,2540.6,2540.5,23.89083532]
[1749419483661,8.06176946,2540.6,2540.5,23.89083532]
[1749419484272,8.06176948,2540.6,2540.5,23.89083532]
[1749419484574,7.69273461,2540.6,2540.5,23.89083532]
[1749419484964,8.06177245,2540.6,2540.5,23.89083532]
[1749419485138,8.06177283,2540.6,2540.5,23.89083532]
[1749419485879,8.06177297,2540.6,2540.5,23.89083532]
[1749419486082,9.32273461,2540.6,2540.5,23.89083532]
[1749419486948,9.69177279,2540.6,2540.5,23.89083532]
[1749419487252,9.69177295,2540.6,2540.5,23.89083532]
[1749419487679,9.69177365,2540.6,2540.5,23.89083532]
[1749419487866,9.69177489,2540.6,2540.5,23.89083532]
[1749419488053,9.32273461,2540.6,2540.5,23.89083532]
[1749419488694,9.32276307,2540.6,2540.5,23.89083532]
[1749419488843,9.69180209,2540.6,2540.5,23.89083532]
[1749419489578,9.6917915,2540.6,2540.5,23.89083532]
[1749419489745,9.32276307,2540.6,2540.5,23.89083532]
[1749419490672,9.69179305,2540.6,2540.5,23.89083532]
[1749419491280,9.69179108,2540.6,2540.5,23.89083532]
[1749419491577,9.69178415,2540.6,2540.5,23.89083532]
[1749419491740,9.69178183,2540.6,2540.5,23.89083532]
[1749419491942,9.32276307,2540.6,2540.5,23.89083532]
[1749419492499,9.69178178,2540.6,2540.5,23.89083532]
[1749419492789,9.32276307,2540.6,2540.5,23.89083532]
[1749419493021,9.69178064,2540.6,2540.5,23.89083532]
[1749419493201,9.69178089,2540.6,2540.5,23.89083532]
[1749419493345,9.69178102,2540.6,2540.5,23.89083532]
[1749419493542,9.32276307,2540.6,2540.5,23.89083532]
[1749419493864,9.69178187,2540.6,2540.5,23.89083532]
[1749419494694,9.6917774,2540.6,2540.5,23.89083532]
[1749419494846,9.32276307,2540.6,2540.5,23.89083532]
[1749419495995,9.69177645,2540.6,2540.5,23.89083532]
[1749419496296,9.69177703,2540.6,2540.5,23.89083532]
[1749419496465,9.69177491,2540.6,2540.5,23.89083532]
[1749419496663,9.32276307,2540.6,2540.5,23.89083532]
[1749419497249,9.69177589,2540.6,2540.5,23.89083532]
[1749419497463,9.32276307,2540.6,2540.5,23.89083532]
[1749419497782,9.69177475,2540.6,2540.5,23.89083532]
[1749419498149,9.69177645,2540.6,2540.5,23.89083532]
[1749419498478,9.32276307,2540.6,2540.5,23.89083532]
[1749419499083,9.6917724,2540.6,2540.5,23.89083532]
[1749419499244,9.69177236,2540.6,2540.5,23.89083532]
[1749419499741,9.69177506,2540.6,2540.5,23.89083532]
[1749419499970,9.69177625,2540.6,2540.5,23.89083532]
[1749419500279,9.69177525,2540.6,2540.5,23.89083532]
[1749419500599,9.69177466,2540.6,2540.5,23.89083532]
[1749419500786,9.32276307,2540.6,2540.5,23.89083532]
[1749419500952,9.69177507,2540.6,2540.5,23.89083532]
[1749419501571,9.69177553,2540.6,2540.5,23.89083532]
[1749419501752,9.69177634,2540.6,2540.5,23.89083532]
[1749419502083,9.32276307,2540.6,2540.5,23.89083532]
[1749419502688,9.69177899,2540.6,2540.5,23.89083532]
[1749419503581,9.6917764,2540.6,2540.5,23.89083532]
[1749419503892,9.32276307,2540.6,2540.5,23.89083532]
[1749419504193,9.69177644,2540.6,2540.5,23.89083532]
[1749419504386,9.6917765,2540.6,2540.5,23.89083532]
[1749419504682,9.6917741,2540.6,2540.5,23.89083532]
[1749419504886,9.32276307,2540.6,2540.5,23.89083532]
[1749419505296,7.66276307,2540.6,2540.5,23.89083532]
[1749419506788,1.31376307,2540.6,2540.5,24.69103532]
[1749419507010,7.66176307,2540.6,2540.5,24.69103532]
[1749419508396,1.31376307,2540.6,2540.5,24.69103532]
[1749419508583,7.66176307,2540.6,2540.5,24.69103532]
[1749419509705,1.31376307,2540.6,2540.5,24.69103532]
[1749419509906,0.36903163,2540.6,2540.5,24.69103532]
[1749419528186,0.16903163,2540.6,2540.5,24.69103532]
[1749419530007,0.16903163,2540.6,2540.5,29.39103532]
[1749419536427,7.964,2541.1,2541.0,23.89006078]
[1749419536736,8.90754946,2541.1,2541.0,23.89006078]
[1749419541552,2.56254946,2541.1,2541.0,23.89006078]
[1749419541719,8.90654946,2541.1,2541.0,23.89006078]
[1749419542146,7.28754946,2541.1,2541.0,23.89006078]
[1749419542948,1.98083682,2541.3,2541.2,3.93514874]
[1749419542949,1.17943682,2541.3,2541.2,3.93514874]
[1749419543271,3.1723659,2542.0,2541.8,3.93421984]
[1749419543272,2.02149347,2541.9,2541.8,3.93421984]
[1749419543426,0.00192944,2542.6,2542.4,19.93329137]
[1749419544044,1.57496149,2543.3,2543.2,19.9320541]
[1749419544244,0.01,2544.0,2543.5,19.93159032]
[1749419544245,3.49004584,2543.6,2543.5,19.93159032]
[1749419544646,3.49004584,2543.6,2543.5,23.88619262]
[1749419545270,0.01,2544.0,2543.9,3.93097212]
[1749419545428,3.70725745,2544.5,2544.1,3.9306631]
[1749419545748,3.87446906,2545.3,2544.9,4.69052748]
[1749419545923,0.12226292,2545.6,2545.5,3.92850127]
[1749419546124,0.12226292,2545.6,2545.5,19.92850127]
[1749419546923,0.12226292,2545.6,2545.5,20.32535477]
[1749419547146,0.035,2546.0,2545.5,21.63645477]